fUSD/lending_fUSD_20251230
["ID","MTS","AMOUNT","RATE_DAILY","PERIOD"]
[400088379,1767084437111,-500.0,0.00015594,2]
[400088380,1767084437133,-280.0,0.00015594,2]
[400088381,1767084437153,-168.70222356,0.00015818,2]
[400088382,1767084437173,-1852.42,0.00016004,2]
[400088383,1767084437193,-167.36,0.00016176,2]
[400088384,1767084437217,-28.06636415,0.00016231,2]
[400088389,1767084631778,-355.0,0.00015998,2]
[400088390,1767084631788,-192.77308168,0.00016018,2]
[400088391,1767084631828,-143.22691832,0.00016018,2]
[400088392,1767084631838,-856.77308168,0.000162,5]
[400088393,1767084631887,166.66,0.00015114,2]
[400088394,1767084631900,-501.00324206,0.000162,5]
[400088395,1767084631914,-4170.22367626,0.000162,5]
[400088396,1767084631924,-151.0,0.00016256,2]
[400088397,1767084631934,-151.0,0.00016263,2]
[400088398,1767084631944,-151.0,0.00016263,2]
[400088399,1767084631954,-151.0,0.00016263,2]
[400088400,1767084631964,-151.0,0.00016263,2]
[400088401,1767084631974,-355.0,0.00016263,2]
[400088402,1767084631984,-168.0,0.00016268,2]
[400088403,1767084631994,-355.0,0.00016356,2]
[400088404,1767084632003,-168.0,0.0001645,2]
[400088405,1767084632013,-168.0,0.00016586,2]
[400088406,1767084632023,-168.0,0.00016616,2]
[400088408,1767084632033,-168.0,0.00016635,2]
[400088410,1767084632043,-151.0,0.0001665,2]
[400088412,1767084632054,-799.62985174,0.0001666,2]
[400088414,1767084632064,-300.0,0.00016693,2]
[400088416,1767084632074,-168.0,0.00016694,2]
[400088418,1767084632084,-200.0,0.00016864,2]
[400088420,1767084632093,-168.0,0.00016894,2]
[400088422,1767084632103,-300.0,0.00016899,2]
[400088424,1767084632113,-23260.064,0.000169,2]
[400088427,1767084632123,-5354.53950015,0.000169,2]
[400088429,1767084632133,-1398.5529817,0.00016944,2]
[400088431,1767084632142,-560.6853314,0.00016983,2]
[400088433,1767084632152,-8717.93,0.00016986,2]
[400088435,1767084632161,-200.0,0.0001699,2]
[400088437,1767084632170,-620.0,0.0001699,2]
[400088439,1767084632180,-553.64373807,0.0001699,2]
[400088441,1767084632190,-268.90557156,0.0001699,2]
[400088443,1767084632199,-151.0,0.0001699,2]
[400088445,1767084632209,-151.0,0.0001699,2]
[400088447,1767084632223,-506.94821689,0.0001699,2]
[400088449,1767084632233,-151.0,0.0001699,2]
[400088452,1767084632243,-151.0,0.0001699,2]
[400088454,1767084632254,-151.0,0.0001699,2]
[400088455,1767084632263,-250.49238894,0.0001699,2]
[400088457,1767084632273,-432.44,0.0001699,2]
[400088459,1767084632283,-953.274,0.00016999,2]
[400088461,1767084632293,-166.448,0.00016999,2]
[400088462,1767084632303,-43250.33632546,0.00017,2]
[400088463,1767084632313,-1515.3145378,0.00017,2]
[400088464,1767084632326,-2026.24736977,0.00017,2]
[400088465,1767084632336,-193.57357588,0.00017,2]
[400088466,1767084632346,-60961.81566924,0.00017,2]
[400088467,1767084632358,-21192.82515126,0.00017,2]
[400088468,1767084632370,-805.18595638,0.00017,2]
[400088469,1767084637788,-166.66,0.00015432,2]
[400088470,1767084637798,-166.66,0.0001575,2]
[400088471,1767084637811,-355.0,0.00015917,2]
[400088472,1767084637821,-166.66,0.00016069,2]
[400088473,1767084637831,-166.66,0.00016387,2]
[400088474,1767084637841,-166.66,0.00016705,2]
[400088475,1767084637851,-0.44622491,0.00017,2]
[400088476,1767084637863,-1294.81404362,0.00017,2]
[400088477,1767084637875,-13212.47340754,0.00017,2]
[400088478,1767084637884,-151.67966389,0.00017,2]
[400088479,1767084637894,-1482.0,0.00017,2]
[400088480,1767084637904,-168.0,0.00017006,2]
[400088481,1767084637914,-195.0,0.00017098,2]
[400088482,1767084637923,-1526.47109979,0.00017098,2]
[400088483,1767084637933,-355.0,0.00017105,2]
[400088484,1767084637943,-168.0,0.00017116,2]
[400088485,1767084637954,-168.0,0.00017124,2]
[400088486,1767084637964,-168.0,0.00017152,2]
[400088487,1767084637973,-500.0,0.00017152,2]
[400088488,1767084637984,-500.0,0.00017203,2]
[400088489,1767084637994,-168.0,0.00017259,2]
[400088490,1767084638008,-432.44,0.00017264,2]
[400088491,1767084638018,-336.0,0.00017282,2]
[400088492,1767084638028,-336.0,0.00017353,2]
[400088493,1767084638038,-336.0,0.0001738,2]
[400088494,1767084638047,-355.0,0.00017407,2]
[400088496,1767084638057,-4002.0,0.00017415,2]
[400088498,1767084638068,-500.0,0.00017426,2]
[400088500,1767084638078,-432.44,0.00017538,2]
[400088501,1767084638088,-355.0,0.00017541,2]
[400088503,1767084638099,-500.0,0.000177,2]
[400088505,1767084638110,-1000.0,0.00017768,2]
[400088507,1767084638120,-432.44,0.00017812,2]
[400088508,1767084638130,-355.0,0.00017863,2]
[400088510,1767084638139,-1000.0,0.000179,2]
[400088512,1767084638150,-154.87,0.00017973,2]
[400088513,1767084638159,-53810.18582878,0.00018,7]
[400088515,1767084638172,-6692.65339329,0.00018,7]
[400088517,1767084638183,-432.44042975,0.00018086,2]
[400088519,1767084638193,-355.0,0.00018128,2]
[400088521,1767084638203,-3461.0,0.00018278,2]
[400088522,1767084638213,-435.912,0.00018278,2]
[400088523,1767084638223,-575.218,0.00018278,2]
[400088524,1767084638234,-6540.0,0.00018278,2]
[400088525,1767084638244,-4810.0,0.00018278,2]
[400088526,1767084638254,-337.0,0.00018459,2]
[400088527,1767084638265,-150.59000741,0.00018616,5]
[400088528,1767084638275,-296.59160798,0.00018892,2]
[400088529,1767084638284,-161.0,0.000189,2]
[400088530,1767084638296,-999.0,0.00019235,3]
[400088531,1767084638306,-500.0,0.00019479,2]
[400088532,1767084638316,-500.0,0.00019633,2]
[400088533,1767084638327,-4002.0,0.00019729,2]
[400088534,1767084638338,-1000.0,0.00019742,2]
[400088535,1767084638348,-1096.47735868,0.00019773,2]
[400088536,1767084638360,-4258.06214143,0.00019773,2]
[400088537,1767084638373,-166.66,0.00020116,2]
[400088538,1767084638387,-300.65,0.00020187,2]
[400088539,1767084638398,-150.0,0.0002057,2]
[400088540,1767084638408,-150.0,0.0002057,2]
[400088541,1767084638418,-150.512,0.0002057,2]
[400088542,1767084638430,-563.30171855,0.000207,2]
[400088543,1767084638443,-918.70999964,0.000207,2]
[400088544,1767084638454,-173.72,0.00021,2]
[400088545,1767084638464,-724.73422791,0.00021178,2]
[400088546,1767084638475,-565.0,0.00021278,2]
[400088547,1767084638485,-6540.0,0.00021278,2]
[400088548,1767084638495,-300.0,0.0002143,2]
[400088549,1767084638505,-357.4,0.0002143,2]
[400088550,1767084638516,-1000.0,0.00021716,2]
[400088551,1767084638526,-1603.27,0.00021757,2]
[400088552,1767084638536,-1540.90426065,0.00021918,2]
[400088553,1767084638550,-3459.09573935,0.00021918,2]
[400088554,1767084638561,-4002.0,0.00022043,2]
[400088555,1767084638572,-588.02476607,0.00022352,2]
[400088556,1767084638585,-521.75523393,0.00022352,2]
[400088557,1767084638595,-5354.53950011,0.00022646,2]
[400088558,1767084638605,-1445.49,0.0002265,2]
[400088559,1767084638615,-481.74,0.00022767,2]
[400088560,1767084638627,-400.05,0.000231,2]
[400088561,1767084638636,-152.2494733,0.00023312,2]
[400088562,1767084638647,-150.0,0.0002357,2]
[400088563,1767084638657,-334.37579266,0.00023671,2]
[400088564,1767084639247,180.71,0.00026231,120]
[400088565,1767084639847,-147.36420734,0.00023671,2]
[400088566,1767084639856,-291.35579266,0.0002369,2]
[400088567,1767084640180,-354.04491033,0.0002369,2]
[400088568,1767084643468,-355.0,0.00015998,2]
[400088569,1767084643480,-442.5643251,0.00018278,2]
[400088570,1767084643493,-768.9556749,0.00018278,2]
[400088571,1767084643503,-354.59929701,0.0002369,2]
[400088572,1767084643513,-177.62909056,0.00024261,2]
[400088578,1767084718927,10199.73603729,0.00022,120]
[400088579,1767084992185,256.95,0.00011806,2]
[400088580,1767084992402,256.95,0.00012428,2]
[400088583,1767085634121,-256.95,0.00013049,2]
[400088584,1767085634143,-43.187795,0.0001336,2]
[400088585,1767085753108,-255.27345389,0.0001336,2]
[400088586,1767085753130,-256.95,0.0001367,2]
[400088587,1767085753149,-606.808043,0.00013676,2]
[400088588,1767085753169,-175.70407614,0.00013676,2]
[400088589,1767085753190,-285.59,0.00013699,2]
[400088590,1767085753209,-419.89195242,0.00013776,2]
[400088591,1767085753230,-600.0,0.00013776,2]
[400088592,1767085753250,-600.0,0.00013776,2]
[400088593,1767085753271,-217.83929868,0.00013776,2]
[400088594,1767085753297,-256.95,0.00014292,2]
[400088595,1767085753317,-300.0,0.0001435,2]
[400088596,1767085753338,-1200.0,0.00014351,2]
[400088597,1767085753358,-2500.0,0.00014354,2]
[400088598,1767085753381,-195.0,0.00014354,2]
[400088599,1767085753402,-300.0,0.00014354,2]
[400088600,1767085753424,-1179.1155751,0.00014354,2]
[400088601,1767085753444,-600.0,0.00014354,2]
[400088602,1767085753464,-250.0,0.00014354,2]
[400088603,1767085753484,-300.0,0.00014696,2]
[400088604,1767085753511,-256.95,0.00014913,2]
[400088610,1767085831857,-256.95,0.00015534,2]
[400088613,1767085831867,-256.95,0.00016156,2]
[400088615,1767085831876,-973.28,0.00016211,2]
[400088616,1767085831885,-355.0,0.00016236,2]
[400088619,1767085831895,-200.0,0.00016239,2]
[400088620,1767085831905,-151.0,0.00016365,2]
[400088621,1767085831914,-151.0,0.00016365,2]
[400088622,1767085831923,-151.0,0.00016372,2]
[400088623,1767085831933,-151.0,0.00016372,2]
[400088624,1767085831943,-151.0,0.00016379,2]
[400088625,1767085831952,-151.0,0.00016379,2]
[400088626,1767085831961,-151.0,0.00016405,2]
[400088627,1767085831971,-151.0,0.00016405,2]
[400088628,1767085831981,-256.95,0.00016777,2]
[400088629,1767085831991,-190.0,0.00016789,2]
[400088630,1767085832000,-70.29126143,0.00016789,2]
[400088631,1767085832017,-229.70873857,0.00016789,2]
[400088632,1767085832027,-200.0,0.0001679,2]
[400088633,1767085832036,-151.0,0.0001679,2]
[400088634,1767085832046,-151.0,0.0001679,2]
[400088635,1767085832061,-151.0,0.0001679,2]
[400088636,1767085832070,-151.0,0.0001679,2]
[400088638,1767085832080,-151.0,0.0001679,2]
[400088639,1767085832089,-151.0,0.0001679,2]
[400088640,1767085832099,-151.0,0.0001679,2]
[400088641,1767085832109,-151.0,0.0001679,2]
[400088642,1767085832120,-151.0,0.0001679,2]
[400088643,1767085832129,-151.0,0.0001679,2]
[400088644,1767085832139,-226.56704733,0.0001679,2]
[400088645,1767085832148,-151.0,0.0001679,2]
[400088646,1767085832158,-3748.17765014,0.000168,2]
[400088647,1767085832168,-175.70407613,0.000168,2]
[400088648,1767085832178,-214.5162,0.000169,2]
[400088649,1767085832188,-762.619,0.00016944,2]
[400088650,1767085832197,-166.449,0.00016944,2]
[400088651,1767085832207,-2400.84,0.00016945,2]
[400088652,1767085832217,-300.0,0.00017088,2]
[400088653,1767085832227,-200.0,0.0001727,2]
[400088654,1767085832237,-628.41134831,0.0001727,2]
[400088655,1767085832247,-268.09,0.00017292,2]
[400088656,1767085832257,-256.95,0.00017398,2]
[400088657,1767085832267,-3001.5,0.00017447,2]
[400088658,1767085832277,-150.0,0.00017451,2]
[400088659,1767085832287,-154.498038,0.00017451,2]
[400088660,1767085832297,-500.0,0.00017451,2]
[400088661,1767085832307,-500.0,0.00017451,2]
[400088662,1767085832316,-150.0,0.00017451,2]
[400088663,1767085832326,-500.0,0.00017451,2]
[400088664,1767085832336,-500.0,0.00017451,2]
[400088665,1767085832346,-500.0,0.00017506,2]
[400088666,1767085832356,-150.0,0.00017506,2]
[400088667,1767085832366,-500.0,0.00017506,2]
[400088668,1767085832376,-500.0,0.00017506,2]
[400088669,1767085832385,-500.0,0.00017506,2]
[400088670,1767085832395,-150.0,0.00017506,2]
[400088671,1767085832405,-500.0,0.00017506,2]
[400088672,1767085832421,-150.0,0.00017561,2]
[400088673,1767085832431,-450.0,0.00017561,2]
[400088674,1767085832441,-376.68738483,0.00017561,2]
[400088675,1767085832450,-500.0,0.00017561,2]
[400088676,1767085832459,-150.0,0.00017561,2]
[400088677,1767085832469,-353.73121974,0.00017561,2]
[400088678,1767085832478,-150.0,0.00017615,2]
[400088679,1767085832488,-553.3371393,0.00017615,2]
[400088680,1767085832497,-255.63416744,0.00017615,2]
[400088681,1767085832507,-200.0,0.00017633,2]
[400088682,1767085832517,-150.0,0.0001767,2]
[400088683,1767085832527,-220.14669286,0.00017725,2]
[400088684,1767085832536,-150.0,0.00017725,2]
[400088685,1767085832546,-150.0,0.00017725,2]
[400088686,1767085832556,-150.97270228,0.00017725,2]
[400088687,1767085832566,-150.0,0.00017725,2]
[400088688,1767085832575,-214.26152508,0.0001778,2]
[400088689,1767085832585,-150.0,0.0001778,2]
[400088690,1767085832595,-150.0,0.0001778,2]
[400088691,1767085832606,-200.0,0.00017835,2]
[400088692,1767085832615,-200.0,0.00017835,2]
[400088693,1767085832625,-500.0,0.00017999,2]
[400088694,1767085832635,-256.95,0.0001802,2]
[400088695,1767085832644,-256.95,0.00018641,2]
[400088696,1767085832654,-565.0,0.00018926,2]
[400088697,1767085832664,-370.606,0.00018926,2]
[400088698,1767085832673,-150.0,0.00019004,2]
[400088699,1767085832683,-781.144,0.00019004,2]
[400088700,1767085832692,-256.95,0.00019263,2]
[400088701,1767085832702,-207.4,0.00019529,2]
[400088702,1767085832712,-1471.63443149,0.00019684,2]
[400088703,1767085832859,-324.27327818,0.00019684,2]
[400088704,1767085832872,-253.75974854,0.00019684,2]
[400088705,1767085832883,-1242.16060208,0.00019684,2]
[400088706,1767085832895,-456.34958978,0.00019684,2]
[400088707,1767085832905,-3001.5,0.00019758,2]
[400088708,1767085832914,-256.95,0.00019884,2]
[400088709,1767085832927,-285.59,0.00020187,2]
[400088710,1767085832937,-200.0,0.00020466,2]
[400088711,1767085832947,-256.95,0.00020505,2]
[400088712,1767085832956,-1319.9937619,0.00020583,2]
[400088713,1767085832966,-4727.1782179,0.00020583,2]
[400088714,1767085832975,-256.95,0.00021127,2]
[400088715,1767085832985,-187.36496928,0.00021207,2]
[400088716,1767085832995,-500.0,0.00021207,2]
[400088717,1767085833004,-500.0,0.00021207,2]
[400088718,1767085833014,-469.29994579,0.00021207,2]
[400088719,1767085833023,-2107.49234146,0.00021208,2]
[400088720,1767085833035,-2544.13765854,0.00021208,2]
[400088721,1767085833045,-256.95,0.00021748,2]
[400088722,1767085833055,-506.87011223,0.00021926,2]
[400088723,1767085838134,-151.0,0.00016347,2]
[400088724,1767085838144,-151.0,0.00016347,2]
[400088725,1767085838154,-46.90164646,0.00021926,2]
[400088726,1767085838166,-11.22824131,0.00021926,2]
[400088727,1767085838175,-150.0,0.00022004,2]
[400088728,1767085838186,-2779.5002807,0.00022069,2]
[400088781,1767085840123,-221.9997193,0.00022069,2]
[400088782,1767085840132,-256.95,0.00022369,2]
[400088783,1767085840142,-2112.63828276,0.00022568,2]
[400088784,1767085840154,-398.52112028,0.00022568,2]
[400088785,1767085840168,-1237.01824703,0.00022568,2]
[400088786,1767085840177,-19.36178613,0.00022991,2]
[400088787,1767085840229,-237.58821387,0.00022991,2]
[400088788,1767085840239,-268.01721542,0.00023215,2]
[400088792,1767085845994,-294.07339406,0.00021748,2]
[400088793,1767085846004,-1051.97654648,0.00023215,2]
[400088794,1767085846013,-152.24947331,0.00023588,2]
[400088795,1767085846023,-256.95,0.00023612,2]
[400088796,1767085846033,-1199.44477761,0.00023776,2]
[400088797,1767085846042,-1829.19580854,0.00024174,2]
[400088798,1767085846098,-878.68,0.00024174,2]
[400088799,1767085846110,-5846.65419146,0.00024174,2]
[400088800,1767085846120,-22365.95,0.00024174,2]
[400088801,1767085846130,-9999.99,0.00024174,2]
[400088802,1767085846140,-338.2114975,0.00024213,2]
[400088803,1767085846150,-167.36,0.00024264,2]
[400088804,1767085846159,-1000.0,0.00024658,2]
[400088805,1767085846169,-357.4,0.00024767,2]
[400088806,1767085846179,-150.0,0.00024767,2]
[400088807,1767085846188,-377.29,0.00024767,2]
[400088808,1767085846198,-341.14,0.00024767,2]
[400088809,1767085846208,-150.0,0.00024767,2]
[400088810,1767085846218,-150.0,0.00024767,2]
[400088811,1767085846227,-178.7,0.00024767,2]
[400088812,1767085846237,-178.7,0.00024767,2]
[400088813,1767085846247,-178.7,0.00024767,2]
[400088814,1767085846256,-150.0,0.00024767,2]
[400088815,1767085846266,-150.0,0.00024767,2]
[400088816,1767085846275,-403.13,0.00024767,2]
[400088817,1767085846285,-178.7,0.00024795,2]
[400088818,1767085846294,-1054.7760328,0.00024877,2]
[400088819,1767085846304,-565.0,0.00024926,2]
[400088820,1767085846314,-500.0,0.00024979,2]
[400088821,1767085846323,-523.81507248,0.00024979,2]
[400088822,1767085846332,-506.90698062,0.00024979,2]
[400088823,1767085846342,-930.53743524,0.00025,3]
[400088824,1767085846351,-150.0,0.00025,2]
[400088825,1767085846360,-1000.0,0.00025186,2]
[400088826,1767085846369,-3748.17765007,0.00025452,2]
[400088827,1767085846379,-554.89,0.00025589,2]
[400088828,1767085846389,-554.89,0.00025589,2]
[400088829,1767085846398,-554.89,0.00025589,2]
[400088830,1767085846408,-554.89,0.00025589,2]
[400088831,1767085846418,-554.89,0.00025589,2]
[400088833,1767085846427,-554.89,0.00025589,2]
[400088834,1767085846439,-554.89,0.00025589,2]
[400088835,1767085846449,-554.89,0.00025589,2]
[400088836,1767085846458,-554.89,0.00025589,2]
[400088837,1767085846468,-507.97907943,0.00025589,2]
[400088838,1767085846480,-601.80092057,0.00025589,2]
[400088839,1767085846490,-1109.78,0.00025589,2]
[400088840,1767085846501,-1109.78,0.00025589,2]
[400088841,1767085846510,-1109.78,0.00025589,2]
[400088842,1767085846520,-1109.78,0.00025589,2]
[400088843,1767085846530,-1106.9,0.00025589,2]
[400088844,1767085846540,-151.0,0.00025613,7]
[400088845,1767085846549,-481.74,0.00025616,2]
[400088846,1767085846559,-481.74,0.00025616,2]
[400088847,1767085846569,-481.74,0.00025616,2]
[400088848,1767085846578,-481.74,0.00025616,2]
[400088849,1767085846588,-481.74,0.00025616,2]
[400088850,1767085846598,-481.74,0.00025616,2]
[400088851,1767085846607,-481.74,0.00025616,2]
[400088852,1767085846617,-481.74,0.00025616,2]
[400088853,1767085846628,-481.74,0.00025616,2]
[400088854,1767085846637,-415.51,0.00025616,2]
[400088855,1767085846647,-1029.71,0.00025616,2]
[400088856,1767085846657,-963.48,0.00025616,2]
[400088857,1767085846666,-481.74,0.00025616,2]
[400088858,1767085846677,-481.74,0.00025616,2]
[400088859,1767085846686,-170.99,0.00025616,2]
[400088860,1767085846696,-357.4,0.00025616,2]
[400088861,1767085846706,-170.99,0.00025616,2]
[400088862,1767085846716,-150.0,0.00025616,2]
[400088863,1767085846726,-178.7,0.00025616,2]
[400088864,1767085846736,-1109.78,0.00025616,2]
[400088865,1767085846745,-1109.78,0.00025616,2]
[400088866,1767085846755,-170.99,0.00025616,2]
[400088867,1767085846765,-150.0,0.00025616,2]
[400088868,1767085846775,-1109.78,0.00025616,2]
[400088869,1767085846784,-1109.78,0.00025616,2]
[400088870,1767085846793,-554.89,0.00025616,2]
[400088871,1767085846803,-178.7,0.00025616,2]
[400088872,1767085846812,-554.89,0.00025616,2]
[400088873,1767085846822,-150.0,0.00025616,2]
[400088874,1767085846832,-554.89,0.00025616,2]
[400088875,1767085846841,-235.3523451,0.00025835,2]
[400088876,1767085846855,-1319.9937619,0.00025847,2]
[400088877,1767085847083,-715.47227426,0.000259,2]
[400088878,1767085847094,-299.6,0.00026,2]
[400088879,1767085847104,-554.89,0.00026411,2]
[400088880,1767085847113,-554.89,0.00026438,2]
[400088881,1767085847123,-150.0,0.00026438,2]
[400088882,1767085847133,-300.57,0.00026438,2]
[400088883,1767085847143,-170.99,0.00026438,2]
[400088884,1767085847152,-152.0,0.00026438,2]
[400088885,1767085847161,-150.0,0.00026438,2]
[400088886,1767085847171,-554.89,0.00026438,2]
[400088887,1767085847180,-554.89,0.00026438,2]
[400088888,1767085847190,-178.7,0.00026438,2]
[400088889,1767085847199,-554.89,0.00026438,2]
[400088890,1767085847208,-170.99,0.00026438,2]
[400088891,1767085847217,-554.89,0.00026438,2]
[400088892,1767085847227,-150.0,0.00026438,2]
[400088893,1767085847236,-554.89,0.00026438,2]
[400088894,1767085847245,-150.0,0.00026438,2]
[400088895,1767085847255,-723.71,0.00026438,2]
[400088896,1767085847264,-150.0,0.00026438,2]
[400088897,1767085847273,-150.0,0.00026438,2]
[400088898,1767085847283,-481.56,0.00026575,2]
[400088899,1767085847292,-963.48,0.00026575,2]
[400088900,1767085847301,-963.48,0.00026575,2]
[400088901,1767085847311,-963.48,0.00026575,2]
[400088902,1767085847320,-481.74,0.00026575,2]
[400088903,1767085847330,-481.74,0.00026575,2]
[400088904,1767085847339,-481.74,0.00026575,2]
[400088905,1767085847348,-481.74,0.00026575,2]
[400088906,1767085847357,-963.32,0.00026575,2]
[400088907,1767085847367,-481.74,0.00026575,2]
[400088908,1767085847376,-481.74,0.00026575,2]
[400088909,1767085847386,-481.74,0.00026575,2]
[400088910,1767085847395,-481.74,0.00026575,2]
[400088911,1767085847405,-481.74,0.00026575,2]
[400088912,1767085847415,-285.59,0.00026676,2]
[400088913,1767085847427,-9821.04107616,0.00026682,3]
[400088914,1767085847437,-1077.55509592,0.00027249,10]
[400088915,1767085847446,-548.12911362,0.0002726,2]
[400088916,1767085847455,-170.99,0.0002726,2]
[400088917,1767085847465,-150.0,0.0002726,2]
[400088918,1767085847474,-150.0,0.0002726,2]
[400088919,1767085847483,-150.0,0.0002726,2]
[400088920,1767085847492,-170.99,0.0002726,2]
[400088921,1767085847502,-150.0,0.0002726,2]
[400088922,1767085847511,-150.0,0.0002726,2]
[400088923,1767085847520,-150.0,0.0002726,2]
[400088924,1767085847530,-170.99,0.0002726,2]
[400088925,1767085847539,-160.48,0.0002726,2]
[400088926,1767085847549,-150.0,0.0002726,2]
[400088927,1767085847558,-9821.04107616,0.00027387,3]
[400088928,1767085847567,-167.49336328,0.00027397,2]
[400088929,1767085847577,-180.39,0.00027397,30]
[400088930,1767085847587,-500.0,0.00027397,20]
[400088931,1767085847596,-153.0,0.00027397,2]
[400088932,1767085847605,-153.0,0.00027397,2]
[400088933,1767085847615,-153.0,0.00027397,2]
[400088934,1767085847624,-153.0,0.00027397,2]
[400088935,1767085847634,-153.0,0.00027397,2]
[400088936,1767085847643,-164.87514699,0.00027397,2]
[400088937,1767085847653,-153.0,0.00027397,2]
[400088938,1767085847662,-153.0,0.00027397,2]
[400088939,1767085847672,-153.0,0.00027397,2]
[400088940,1767085847682,-153.0,0.00027397,2]
[400088941,1767085847691,-153.0,0.00027397,2]
[400088942,1767085847700,-235.0,0.00027397,2]
[400088943,1767085847710,-153.0,0.00027397,2]
[400088944,1767085847720,-153.0,0.00027397,2]
[400088945,1767085847730,-153.0,0.00027397,2]
[400088946,1767085847739,-153.0,0.00027397,2]
[400088947,1767085847749,-153.0,0.00027397,2]
[400088948,1767085847759,-153.0,0.00027397,2]
[400088949,1767085847768,-153.0,0.00027397,2]
[400088950,1767085847777,-194.53463817,0.00027397,2]
[400088951,1767085847786,-153.0,0.00027397,2]
[400088952,1767085847795,-153.0,0.00027397,2]
[400088953,1767085847806,-153.0,0.00027397,2]
[400088954,1767085847816,-153.0,0.00027397,2]
[400088955,1767085847825,-615.17105218,0.00027883,2]
[400088956,1767085847835,-615.17105218,0.00027964,5]
[400088957,1767085847844,-615.17105218,0.00028045,9]
[400088958,1767085847856,-615.17105218,0.00028126,13]
[400088959,1767085847866,-615.17105218,0.00028207,16]
[400088960,1767085847875,-615.17105218,0.00028288,20]
[400088961,1767085847887,-715.47227421,0.00028308,2]
[400088962,1767085847896,-1000.0,0.00028334,2]
[400088963,1767085847906,-3748.17765007,0.00028336,2]
[400088964,1767085847915,-615.17105218,0.00028369,24]
[400088965,1767085847924,-615.17105218,0.0002845,28]
[400088966,1767085847936,-1319.9937619,0.00028479,2]
[400088967,1767085847945,-615.17105218,0.00028531,31]
[400088968,1767085847955,-4688.0,0.00028612,5]
[400088969,1767085847964,-615.17105218,0.00028612,35]
[400088970,1767085847973,-9821.04107616,0.00028673,3]
[400088971,1767085847983,-615.17105218,0.00028693,39]
[400088972,1767085847992,-615.17105218,0.00028774,42]
[400088973,1767085848002,-615.17105218,0.00028855,46]
[400088974,1767085848011,-615.17105218,0.00028936,50]
[400088975,1767085848021,-615.17105218,0.00029017,54]
[400088976,1767085848030,-9821.04107616,0.00029088,3]
[400088977,1767085848039,-615.17105218,0.00029098,57]
[400088978,1767085848048,-210.16628977,0.00029116,30]
[400088979,1767085848058,-615.17105218,0.00029179,61]
[400088980,1767085848067,-615.17105218,0.0002926,65]
[400088981,1767085848077,-615.17105218,0.00029341,69]
[400088982,1767085848086,-615.17105218,0.00029422,72]
[400088983,1767085848095,-615.17105218,0.00029503,76]
[400088984,1767085848105,-615.17105218,0.00029584,80]
[400088985,1767085848114,-615.17105218,0.00029665,83]
[400088986,1767085848123,-615.17105218,0.00029746,87]
[400088987,1767085848134,-615.17105218,0.00029827,91]
[400088988,1767085848144,-615.17105218,0.00029908,95]
[400088989,1767085848153,-615.17105218,0.00029989,98]
[400088990,1767085848162,-1000.0,0.0003,3]
[400088991,1767085848172,-545.15,0.0003,10]
[400088992,1767085848182,-9821.04107616,0.0003004,3]
[400088993,1767085848192,-500.0,0.0003005,5]
[400088994,1767085848201,-500.82614708,0.0003005,5]
[400088995,1767085848211,-500.0,0.0003005,5]
[400088996,1767085848220,-500.0,0.0003005,5]